fUSD/lending_fUSD_20260319
["ID","MTS","AMOUNT","RATE_DAILY","PERIOD"]
[408576140,1773900663665,-187.272299,0.000159,2]
[408576141,1773900663676,-574.989656,0.000159,2]
[408576142,1773900663687,-971.057393,0.000159,2]
[408576143,1773900663698,-426.68378316,0.000159,2]
[408576144,1773900663708,-574.989656,0.000159,2]
[408576145,1773900663718,-971.057393,0.000159,2]
[408576146,1773900663728,-151.0,0.000159,2]
[408576147,1773900663738,-351.558585,0.000159,2]
[408576148,1773900663747,-210.110521,0.000159,2]
[408576149,1773900663759,-351.558585,0.000159,2]
[408576150,1773900663768,-154.056591,0.000159,2]
[408576151,1773900663777,-210.110521,0.000159,2]
[408576152,1773900663786,-151.0,0.000159,2]
[408576153,1773900663796,-154.056591,0.000159,2]
[408576154,1773900663806,-351.558585,0.000159,2]
[408576155,1773900663816,-210.110521,0.000159,2]
[408576156,1773900663825,-151.0,0.000159,2]
[408576157,1773900663835,-351.558585,0.000159,2]
[408576158,1773900663845,-154.056591,0.000159,2]
[408576159,1773900664017,-151.0,0.000159,2]
[408576160,1773900664039,-151.0,0.000159,2]
[408576161,1773900664049,-150.0,0.000159,2]
[408576162,1773900664059,-202.884032,0.000159,2]
[408576163,1773900664069,-154.056591,0.000159,2]
[408576164,1773900664079,-251.17544668,0.000159,2]
[408576165,1773900664091,-151.0,0.000159,2]
[408576166,1773900664102,-202.884032,0.000159,2]
[408576167,1773900664112,-202.884032,0.000159,2]
[408576168,1773900664122,-202.884032,0.000159,2]
[408576169,1773900664132,-151.0,0.000159,2]
[408576170,1773900664141,-296.871777,0.000159,2]
[408576171,1773900664152,-2420.00275,0.000159,2]
[408576172,1773900664161,-151.0,0.000159,2]
[408576173,1773900664172,-296.871777,0.000159,2]
[408576174,1773900664183,-2420.00275,0.000159,2]
[408576175,1773900664194,-228.405162,0.000159,2]
[408576176,1773900664203,-296.871777,0.000159,2]
[408576177,1773900664214,-2420.00275,0.000159,2]
[408576178,1773900664225,-228.405162,0.000159,2]
[408576179,1773900664235,-218.324419,0.000159,2]
[408576180,1773900664245,-151.0,0.000159,2]
[408576181,1773900664255,-296.871777,0.000159,2]
[408576182,1773900664265,-2420.00275,0.000159,2]
[408576183,1773900664274,-228.405162,0.000159,2]
[408576184,1773900664283,-218.324419,0.000159,2]
[408576185,1773900664293,-228.405162,0.000159,2]
[408576186,1773900664302,-218.324419,0.000159,2]
[408576187,1773900664311,-151.0,0.000159,2]
[408576188,1773900664321,-218.324419,0.000159,2]
[408576189,1773900664330,-151.0,0.000159,2]
[408576190,1773900664339,-151.0,0.000159,2]
[408576191,1773900664349,-151.0,0.000159,2]
[408576192,1773900664358,-151.0,0.000159,2]
[408576193,1773900664367,-151.0,0.000159,2]
[408576194,1773900664376,-151.0,0.000159,2]
[408576195,1773900664386,-151.0,0.000159,2]
[408576196,1773900664395,-151.0,0.000159,2]
[408576197,1773900664405,-1096.767558,0.000159,2]
[408576198,1773900664414,-1096.767558,0.000159,2]
[408576199,1773900664424,-1096.767558,0.000159,2]
[408576200,1773900664434,-151.0,0.000159,2]
[408576201,1773900664444,-280.24666,0.000159,2]
[408576202,1773900664453,-1261.80267,0.000159,2]
[408576203,1773900664463,-1096.767558,0.000159,2]
[408576204,1773900664472,-280.24666,0.000159,2]
[408576205,1773900664482,-1261.80267,0.000159,2]
[408576206,1773900664492,-1457.738554,0.000159,2]
[408576207,1773900664501,-280.24666,0.000159,2]
[408576208,1773900664511,-1261.80267,0.000159,2]
[408576209,1773900664520,-1457.738554,0.000159,2]
[408576210,1773900664530,-280.24666,0.000159,2]
[408576211,1773900664539,-1261.80267,0.000159,2]
[408576212,1773900664549,-151.0,0.000159,2]
[408576213,1773900664560,-1111.289819,0.000159,2]
[408576214,1773900664569,-1457.738554,0.000159,2]
[408576215,1773900664579,-1111.289819,0.000159,2]
[408576216,1773900664588,-1457.738554,0.000159,2]
[408576217,1773900664599,-151.0,0.000159,2]
[408576218,1773900664609,-388.876166,0.000159,2]
[408576219,1773900664620,-1111.289819,0.000159,2]
[408576220,1773900664630,-151.0,0.000159,2]
[408576221,1773900664639,-151.0,0.000159,2]
[408576222,1773900664650,-388.876166,0.000159,2]
[408576223,1773900664659,-1111.289819,0.000159,2]
[408576224,1773900664669,-151.0,0.000159,2]
[408576225,1773900664679,-1697.722132,0.000159,2]
[408576226,1773900664688,-151.0,0.000159,2]
[408576227,1773900664699,-388.876166,0.000159,2]
[408576228,1773900664708,-151.0,0.000159,2]
[408576229,1773900664718,-151.0,0.000159,2]
[408576230,1773900664727,-1697.722132,0.000159,2]
[408576231,1773900664737,-151.0,0.000159,2]
[408576232,1773900664747,-388.876166,0.000159,2]
[408576233,1773900664757,-181.796944,0.000159,2]
[408576234,1773900664767,-151.0,0.000159,2]
[408576235,1773900664778,-177.962446,0.000159,2]
[408576236,1773900664790,-1697.722132,0.000159,2]
[408576237,1773900664800,-151.0,0.000159,2]
[408576238,1773900664810,-351.175175,0.000159,2]
[408576239,1773900664820,-151.0,0.000159,2]
[408576240,1773900664830,-544.326923,0.000159,2]
[408576241,1773900664840,-177.962446,0.000159,2]
[408576242,1773900664849,-491.568807,0.000159,2]
[408576243,1773900664859,-1697.722132,0.000159,2]
[408576244,1773900664869,-151.0,0.000159,2]
[408576245,1773900664879,-351.175175,0.000159,2]
[408576246,1773900664893,-544.326923,0.000159,2]
[408576247,1773900664902,-151.0,0.000159,2]
[408576248,1773900664913,-491.568807,0.000159,2]
[408576249,1773900664923,-177.962446,0.000159,2]
[408576250,1773900664934,-351.175175,0.000159,2]
[408576251,1773900664944,-761.863263,0.000159,2]
[408576252,1773900664956,-544.326923,0.000159,2]
[408576253,1773900664966,-177.962446,0.000159,2]
[408576254,1773900664976,-491.568807,0.000159,2]
[408576255,1773900664986,-150.0,0.000159,2]
[408576256,1773900664995,-150.0,0.000159,2]
[408576257,1773900665005,-1913.0,0.000159,5]
[408576258,1773900665015,-150.0,0.000159,2]
[408576259,1773900665024,-492.01755042,0.000159,2]
[408576260,1773900665033,-492.01755035,0.000159,2]
[408576261,1773900665042,-492.01755035,0.000159,2]
[408576262,1773900665052,-492.01755035,0.000159,2]
[408576263,1773900665061,-151.0,0.000159,2]
[408576264,1773900665071,-151.0,0.000159,2]
[408576265,1773900665080,-151.0,0.000159,2]
[408576266,1773900665090,-1951.875944,0.000159,2]
[408576267,1773900665099,-151.0,0.000159,2]
[408576268,1773900665108,-1951.875944,0.000159,2]
[408576269,1773900665118,-492.01755035,0.000159,2]
[408576270,1773900665127,-151.0,0.000159,2]
[408576271,1773900665136,-4647.7432193,0.000159,2]
[408576272,1773900665145,-1951.875944,0.000159,2]
[408576273,1773900665154,-1951.875944,0.000159,2]
[408576274,1773900665163,-492.01755035,0.000159,2]
[408576275,1773900665173,-492.01755035,0.000159,2]
[408576276,1773900665183,-2635.334568,0.000159,2]
[408576277,1773900665192,-492.01755035,0.000159,2]
[408576278,1773900665202,-2635.334568,0.000159,2]
[408576279,1773900665211,-1651.820882,0.000159,2]
[408576280,1773900665221,-225.106884,0.000159,2]
[408576281,1773900665231,-2635.334568,0.000159,2]
[408576282,1773900665240,-1651.820882,0.000159,2]
[408576283,1773900665250,-225.106884,0.000159,2]
[408576284,1773900665260,-2635.334568,0.000159,2]
[408576285,1773900665269,-2289.291087,0.000159,2]
[408576286,1773900665279,-1651.820882,0.000159,2]
[408576287,1773900665289,-225.106884,0.000159,2]
[408576288,1773900665299,-492.01755035,0.000159,2]
[408576289,1773900665308,-1651.820882,0.000159,2]
[408576290,1773900665318,-2289.291087,0.000159,2]
[408576291,1773900665328,-185.420485,0.000159,2]
[408576292,1773900665338,-225.106884,0.000159,2]
[408576293,1773900665347,-2289.291087,0.000159,2]
[408576294,1773900665356,-185.420485,0.000159,2]
[408576295,1773900665366,-2289.291087,0.000159,2]
[408576296,1773900665375,-3178.349364,0.000159,2]
[408576297,1773900665385,-185.420485,0.000159,2]
[408576298,1773900665395,-492.01755035,0.000159,2]
[408576299,1773900665405,-3178.349364,0.000159,2]
[408576300,1773900665415,-185.420485,0.000159,2]
[408576301,1773900665425,-151.0,0.000159,2]
[408576302,1773900665435,-3178.349364,0.000159,2]
[408576303,1773900665445,-2061.693744,0.000159,2]
[408576304,1773900665454,-151.0,0.000159,2]
[408576305,1773900665463,-3178.349364,0.000159,2]
[408576306,1773900665473,-2612.845104,0.000159,2]
[408576307,1773900665482,-2061.693744,0.000159,2]
[408576308,1773900665491,-492.01755035,0.000159,2]
[408576309,1773900665500,-2612.845104,0.000159,2]
[408576310,1773900665510,-2061.693744,0.000159,2]
[408576311,1773900665519,-151.0,0.000159,2]
[408576312,1773900665529,-2612.845104,0.000159,2]
[408576313,1773900665539,-151.0,0.000159,2]
[408576314,1773900665549,-2061.693744,0.000159,2]
[408576315,1773900665559,-2612.845104,0.000159,2]
[408576316,1773900665568,-492.01755035,0.000159,2]
[408576317,1773900665578,-492.01755035,0.000159,2]
[408576318,1773900665587,-1349.424833,0.000159,2]
[408576319,1773900665596,-492.01755035,0.000159,2]
[408576320,1773900665605,-1349.424833,0.000159,2]
[408576321,1773900665615,-1349.424833,0.000159,2]
[408576322,1773900665624,-1349.424833,0.000159,2]
[408576323,1773900665634,-492.01755035,0.000159,2]
[408576324,1773900665643,-1531.756993,0.000159,2]
[408576325,1773900665652,-151.0,0.000159,2]
[408576326,1773900665662,-1531.756993,0.000159,2]
[408576327,1773900665671,-1531.756993,0.000159,2]
[408576328,1773900665680,-492.01755035,0.000159,2]
[408576329,1773900665689,-690.254152,0.000159,2]
[408576330,1773900665699,-1531.756993,0.000159,2]
[408576331,1773900665709,-690.254152,0.000159,2]
[408576332,1773900665718,-690.254152,0.000159,2]
[408576333,1773900665728,-319.911065,0.000159,2]
[408576334,1773900665737,-690.254152,0.000159,2]
[408576335,1773900665746,-492.01755035,0.000159,2]
[408576336,1773900665758,-319.911065,0.000159,2]
[408576337,1773900665768,-319.911065,0.000159,2]
[408576338,1773900665777,-492.01755035,0.000159,2]
[408576339,1773900665786,-319.911065,0.000159,2]
[408576340,1773900665796,-845.938546,0.000159,2]
[408576341,1773900665805,-492.01755035,0.000159,2]
[408576342,1773900665816,-845.938546,0.000159,2]
[408576343,1773900665826,-603.024672,0.000159,2]
[408576344,1773900665835,-845.938546,0.000159,2]
[408576345,1773900665845,-603.024672,0.000159,2]
[408576346,1773900665866,-845.938546,0.000159,2]
[408576347,1773900665877,-603.024672,0.000159,2]
[408576348,1773900665890,-492.01755035,0.000159,2]
[408576349,1773900665901,-603.024672,0.000159,2]
[408576350,1773900665912,-151.0,0.000159,2]
[408576351,1773900665922,-151.0,0.000159,2]
[408576352,1773900665936,-151.0,0.000159,2]
[408576353,1773900665946,-9680.222096,0.000159,2]
[408576354,1773900665957,-504.420128,0.000159,2]
[408576355,1773900665967,-151.0,0.000159,2]
[408576356,1773900665978,-770.064578,0.000159,2]
[408576357,1773900665991,-9680.222096,0.000159,2]
[408576358,1773900666001,-504.420128,0.000159,2]
[408576359,1773900666011,-770.064578,0.000159,2]
[408576360,1773900666020,-9680.222096,0.000159,2]
[408576361,1773900666030,-504.420128,0.000159,2]
[408576362,1773900666040,-9680.222096,0.000159,2]
[408576363,1773900666050,-770.064578,0.000159,2]
[408576364,1773900666060,-504.420128,0.000159,2]
[408576365,1773900666071,-770.064578,0.000159,2]
[408576366,1773900666082,-277.136968,0.000159,2]
[408576367,1773900666092,-1291.432253,0.000159,2]
[408576368,1773900666102,-277.136968,0.000159,2]
[408576369,1773900666112,-1291.432253,0.000159,2]
[408576370,1773900666123,-277.136968,0.000159,2]
[408576371,1773900666135,-151.0,0.000159,2]
[408576372,1773900666148,-1291.432253,0.000159,2]
[408576373,1773900666159,-151.0,0.000159,2]
[408576374,1773900666169,-277.136968,0.000159,2]
[408576375,1773900666178,-1291.432253,0.000159,2]
[408576376,1773900666188,-268.04458326,0.000159,2]
[408576377,1773900666198,-151.0,0.000159,2]
[408576378,1773900666209,-151.0,0.000159,2]
[408576379,1773900666224,-151.0,0.000159,2]
[408576380,1773900666236,-606.713391,0.000159,2]
[408576381,1773900666247,-606.713391,0.000159,2]
[408576382,1773900666259,-5262.820055,0.000159,2]
[408576383,1773900666270,-912.434485,0.000159,2]
[408576384,1773900666280,-606.713391,0.000159,2]
[408576385,1773900666291,-5262.820055,0.000159,2]
[408576386,1773900666301,-233.477044,0.000159,2]
[408576387,1773900666313,-606.713391,0.000159,2]
[408576388,1773900666324,-912.434485,0.000159,2]
[408576389,1773900666335,-343.19139322,0.000159,2]
[408576390,1773900666346,-5262.820055,0.000159,2]
[408576391,1773900666355,-205.62239152,0.000159,2]
[408576392,1773900666365,-233.477044,0.000159,2]
[408576393,1773900666375,-150.0,0.000159,2]
[408576394,1773900666384,-912.434485,0.000159,2]
[408576395,1773900666395,-5262.820055,0.000159,2]
[408576396,1773900666404,-233.477044,0.000159,2]
[408576397,1773900666414,-912.434485,0.000159,2]
[408576398,1773900666425,-151.0,0.000159,2]
[408576399,1773900666437,-233.477044,0.000159,2]
[408576400,1773900666448,-151.0,0.000159,2]
[408576401,1773900666458,-151.0,0.000159,2]
[408576402,1773900666469,-760.206708,0.000159,2]
[408576403,1773900666479,-151.0,0.000159,2]
[408576404,1773900666489,-760.206708,0.000159,2]
[408576405,1773900666499,-178.05707,0.000159,2]
[408576406,1773900666509,-151.0,0.000159,2]
[408576407,1773900666642,-760.206708,0.000159,2]
[408576408,1773900666653,-178.05707,0.000159,2]
[408576409,1773900666663,-151.0,0.000159,2]
[408576410,1773900666673,-760.206708,0.000159,2]
[408576411,1773900666682,-178.05707,0.000159,2]
[408576412,1773900666691,-178.05707,0.000159,2]
[408576413,1773900666701,-151.0,0.000159,2]
[408576414,1773900666710,-151.0,0.000159,2]
[408576415,1773900666720,-492.914894,0.000159,2]
[408576416,1773900666729,-151.0,0.000159,2]
[408576417,1773900666738,-151.0,0.000159,2]
[408576418,1773900666749,-492.914894,0.000159,2]
[408576419,1773900666759,-1370.881087,0.000159,2]
[408576420,1773900666767,-492.914894,0.000159,2]
[408576421,1773900666777,-158.158334,0.000159,2]
[408576422,1773900666787,-1370.881087,0.000159,2]
[408576423,1773900666796,-186.812431,0.000159,2]
[408576424,1773900666805,-492.914894,0.000159,2]
[408576425,1773900666814,-1370.881087,0.000159,2]
[408576426,1773900666823,-591.831781,0.000159,2]
[408576427,1773900666832,-186.812431,0.000159,2]
[408576428,1773900666841,-151.0,0.000159,2]
[408576429,1773900666850,-591.831781,0.000159,2]
[408576430,1773900666861,-186.812431,0.000159,2]
[408576431,1773900666870,-151.0,0.000159,2]
[408576432,1773900666880,-591.831781,0.000159,2]
[408576433,1773900666895,-186.812431,0.000159,2]
[408576434,1773900666909,-591.831781,0.000159,2]
[408576435,1773900666919,-1370.881087,0.000159,2]
[408576436,1773900666930,-1329.857896,0.000159,2]
[408576437,1773900666939,-4776.0,0.000159,5]
[408576438,1773900666949,-1000.0,0.00015921,2]
[408576439,1773900666959,-1000.0,0.00015921,2]
[408576440,1773900666968,-300.0,0.00015922,2]
[408576441,1773900666978,-300.44308353,0.00015922,2]
[408576442,1773900666987,-343.02016051,0.00015922,2]
[408576443,1773900666997,-300.0,0.00015933,2]
[408576444,1773900667006,-2000.0,0.00015933,2]
[408576445,1773900667015,-150.0,0.00015938,2]
[408576446,1773900667024,-1000.0,0.00015946,2]
[408576447,1773900667034,-369.0,0.00015957,2]
[408576448,1773900667043,-700.0,0.0001597,2]
[408576449,1773900667053,-700.0,0.0001597,2]
[408576450,1773900667062,-700.0,0.0001597,2]
[408576451,1773900667072,-700.0,0.0001597,2]
[408576452,1773900667081,-700.0,0.0001597,2]
[408576453,1773900667090,-700.0,0.0001597,2]
[408576454,1773900667099,-700.0,0.0001597,2]
[408576455,1773900667112,-700.0,0.0001597,2]
[408576456,1773900667122,-704.56000601,0.0001597,2]
[408576457,1773900667131,-1000.0,0.00015971,2]
[408576458,1773900667140,-300.0,0.00015986,2]
[408576459,1773900667150,-152.0,0.00015987,5]
[408576460,1773900667160,-150.0,0.00015992,2]
[408576461,1773900667169,-151.0,0.00015997,2]
[408576462,1773900667179,-151.0,0.00015997,2]
[408576463,1773900667189,-371277.20919966,0.00016,2]
[408576464,1773900667198,-45798.14626949,0.00016,2]
[408576465,1773900667207,-1122415.35137151,0.00016,2]
[408576466,1773900667216,-531965.30455453,0.00016,2]
[408576467,1773900667226,-974126.39184415,0.00016,2]
[408576468,1773900667236,-1218080.68053397,0.00016,2]
[408576469,1773900667990,-541.902195,0.00014795,2]
[408576470,1773900668000,-3270.096041,0.00014795,2]
[408576471,1773900668010,-1329.857896,0.00014795,2]
[408576472,1773900668019,-1329.857896,0.000158,2]
[408576473,1773900668029,-541.902195,0.000158,2]
[408576474,1773900668039,-3270.096041,0.000158,2]
[408576475,1773900668048,-1329.857896,0.000158,2]
[408576476,1773900668058,-3270.096041,0.000159,2]
[408576477,1773900668067,-1329.857896,0.000159,2]
[408576478,1773900668077,-541.902195,0.000159,2]
[408576479,1773900668086,-3270.096041,0.000159,2]
[408576480,1773900668095,-1329.857896,0.000159,2]
[408576481,1773900668105,-19197.48847898,0.00016,2]
[408576482,1773900668213,-541.902195,0.00014795,2]
[408576483,1773900668222,-826713.53323047,0.00016,2]
[408576484,1773900668233,-338636.36403285,0.00016,2]
[408576485,1773900668625,-2911.16263821,0.00013673,2]
[408576486,1773900668635,-3270.096041,0.00014795,2]
[408576487,1773900668644,-151.0,0.00014795,2]
[408576488,1773900668654,-1329.857896,0.00014795,2]
[408576489,1773900668663,-541.902195,0.00014795,2]
[408576490,1773900668673,-3270.096041,0.00014795,2]
[408576491,1773900668682,-151.0,0.00014795,2]
[408576492,1773900668691,-541.902195,0.000158,2]
[408576493,1773900668702,-3270.096041,0.000158,2]
[408576494,1773900668712,-151.0,0.000158,2]
[408576495,1773900668721,-1329.857896,0.000158,2]
[408576496,1773900668731,-541.902195,0.000158,2]
[408576497,1773900668741,-1110.83469655,0.000158,2]
[408576498,1773900728368,-150.0,0.00010054,2]
[408576499,1773900728400,-300.0,0.00010054,2]
[408576500,1773900728430,-500.0,0.00010054,2]
[408576501,1773900728460,-500.0,0.00010054,2]
[408576502,1773900728494,-500.0,0.00010054,2]
[408576503,1773900728525,-500.0,0.00010054,2]
[408576504,1773900728560,-500.0,0.00010054,2]
[408576505,1773900728588,-500.0,0.00010054,2]
[408576506,1773900728618,-500.0,0.00010054,2]
[408576507,1773900728649,-500.0,0.00010054,2]
[408576508,1773900728677,-500.0,0.00010054,2]
[408576509,1773900728904,-468.60161713,0.00010054,2]
[408576510,1773900729080,-100.01,0.00010055,2]
[408576511,1773900729099,-9062.80676574,0.00010055,2]
[408576512,1773900729113,-10000.01,0.00010055,2]
[408576513,1773900731422,-10000.01,0.00010055,2]
[408576514,1773900735729,500.0,9.955e-05,2]
[408576517,1773900753426,400.0,0.0001,3]
[408576522,1773900788053,175.0,0.0001,3]
[408576523,1773900807251,2170.40788405,9.955e-05,2]
[408576524,1773900846917,163.0,9.955e-05,3]
[408576525,1773900857649,691.25860175,9.981e-05,2]
[408576526,1773900857712,306.41528154,9.955e-05,2]
[408576527,1773900859813,622.568619,9.965e-05,2]
[408576528,1773900905859,303.0,9.965e-05,3]
[408576529,1773900907056,156.0,9.965e-05,3]
[408576530,1773901038073,343.19139322,9.981e-05,2]
[408576531,1773901038716,8417.0,0.0001,2]
[408576532,1773901079539,-250.0,0.00010016,2]
[408576533,1773901079565,-5000.0,0.00010029,2]
[408576534,1773901079591,-250.0,0.00010039,2]
[408576535,1773901079617,-151.0,0.00010049,2]
[408576536,1773901079642,-151.0,0.00010049,2]
[408576537,1773901079668,-151.0,0.00010049,2]
[408576538,1773901079693,-151.0,0.00010049,2]
[408576539,1773901079719,-237.65579626,0.00010049,2]
[408576540,1773901079742,-200.0,0.00010049,2]
[408576541,1773901079768,-151.0,0.00010049,2]
[408576542,1773901079799,-171.10893986,0.00010049,2]
[408576543,1773901079823,-300.0,0.00010052,2]
[408576544,1773901079847,-884.0,0.00010053,2]
[408576545,1773901079878,-1200.0,0.00010053,2]
[408576546,1773901079903,-260.0,0.00010053,2]
[408576547,1773901079928,-150.0,0.00010053,2]
[408576548,1773901079954,-500.0,0.00010054,2]
[408576549,1773901079980,-500.0,0.00010054,2]
[408576550,1773901080005,-500.0,0.00010054,2]
[408576551,1773901080031,-500.0,0.00010054,2]
[408576552,1773901080059,-250.0,0.00010054,2]
[408576553,1773901080091,-500.0,0.00010054,2]
[408576554,1773901080122,-500.0,0.00010054,2]
[408576555,1773901080153,-500.0,0.00010054,2]
[408576556,1773901080183,-500.0,0.00010054,2]
[408576557,1773901080213,-500.0,0.00010054,2]
[408576558,1773901080243,-500.0,0.00010054,2]
[408576559,1773901080273,-161.56961473,0.00010054,2]
[408576560,1773901080299,-500.0,0.00010054,2]
[408576561,1773901080329,-500.0,0.00010054,2]
[408576562,1773901080354,-500.0,0.00010054,2]
[408576563,1773901080379,-150.12655349,0.00010054,2]
[408576564,1773901080407,-34080.53909566,0.00010055,2]
[408576565,1773901114563,205.62239154,9.978e-05,2]
[408576566,1773901128228,-300.0,0.00010054,2]
[408576567,1773901128255,-150.0,0.00010054,2]
[408576568,1773901128280,-5000.0,0.00010054,2]
[408576569,1773901128306,-250.0,0.00010055,2]
[408576570,1773901128334,-29800.0,0.00010055,2]
[408576571,1773901137267,-10000.0,0.00010055,2]
[408576572,1773901137639,-10000.0,0.00010055,2]
[408576573,1773901138210,-10000.0,0.00010055,2]
[408576574,1773901138433,-10000.0,0.00010055,2]
[408576575,1773901138782,-10000.0,0.00010055,2]
[408576576,1773901139093,-10000.0,0.00010055,2]
[408576577,1773901139507,-10000.0,0.00010055,2]
[408576578,1773901139886,-10000.0,0.00010055,2]
[408576579,1773901140205,-10000.0,0.00010055,2]
[408576580,1773901140645,-10000.0,0.00010055,2]
[408576581,1773901140948,-10000.0,0.00010055,2]
[408576582,1773901141308,-10000.0,0.00010055,2]
[408576583,1773901141653,-300.0,0.00010054,2]
[408576584,1773901141678,-243.72938729,0.00010054,2]
[408576585,1773901141698,-490.69480476,0.00010054,2]
[408576586,1773901141723,-8965.57580795,0.00010055,2]
[408576587,1773901142267,-10000.0,0.00010055,2]
[408576588,1773901158286,228.79426216,9.978e-05,2]
[408576589,1773901159305,-10000.0,0.00010055,2]
[408576590,1773901160080,-10000.0,0.00010055,2]
[408576591,1773901160405,-10000.0,0.00010055,2]
[408576592,1773901160720,-10000.0,0.00010055,2]
[408576593,1773901161427,-10000.0,0.00010055,2]
[408576594,1773901161792,-10000.0,0.00010055,2]
[408576595,1773901162213,-10000.0,0.00010055,2]
[408576596,1773901162573,-10000.0,0.00010055,2]
[408576597,1773901162926,-10000.0,0.00010055,2]
[408576598,1773901163311,-10000.0,0.00010055,2]
[408576599,1773901163720,-10000.0,0.00010055,2]
[408576600,1773901164037,-10000.0,0.00010055,2]
[408576601,1773901164367,-10000.0,0.00010055,2]
[408576602,1773901164456,-10000.0,0.00010055,2]
[408576603,1773901164940,-10000.0,0.00010055,2]
[408576604,1773901165289,-10000.0,0.00010055,2]
[408576605,1773901165880,-10000.0,0.00010055,2]
[408576606,1773901166404,-10000.0,0.00010055,2]
[408576607,1773901166746,-10000.0,0.00010055,2]
[408576608,1773901167219,-10000.0,0.00010055,2]
[408576609,1773901167933,-10000.0,0.00010055,2]
[408576610,1773901168793,-10000.0,0.00010055,2]
[408576611,1773901169730,-10000.0,0.00010055,2]
[408576612,1773901185696,-5929.0,0.00010055,2]
[408576613,1773901200047,218.39,0.0001,2]
[408576614,1773901208649,10003.358488,7.945e-05,2]
[408576615,1773901217817,500.0,9.954e-05,2]
[408576616,1773901219374,300.0,9.7e-05,3]
[408576617,1773901221463,700.0,9.8e-05,3]
[408576618,1773901223556,1100.0,9.9e-05,3]
[408576619,1773901225644,1500.0,0.0001,3]
[408576620,1773901229861,4573.9098,9.955e-05,2]
[408576621,1773901241182,5040.89,9.733e-05,2]
[408576622,1773901241342,2124.559019,9.995e-05,2]
[408576623,1773901244805,205.62239152,9.961e-05,2]
[408576624,1773901250370,460.83906784,9.961e-05,2]
[408576625,1773901260633,1391.2093,9.955e-05,2]
[408576626,1773901273033,92936.4417,9.955e-05,2]
[408576627,1773901278471,152.5295081,9.961e-05,2]
[408576628,1773901285270,2500.0,9.955e-05,2]
[408576629,1773901290785,5329.17,9.854e-05,2]
[408576630,1773901291112,245.509,9.854e-05,2]
[408576631,1773901324725,163.0,9.854e-05,3]
[408576632,1773901343380,304.77413088,9.961e-05,2]
[408576633,1773901357726,274.1560491,9.954e-05,2]
[408576634,1773901367465,205.62239152,9.961e-05,2]
[408576635,1773901385148,163.0,9.961e-05,3]
[408576636,1773901385684,500.0,9.945e-05,2]
[408576637,1773901443370,2500.0,9.955e-05,2]
[408576638,1773901447911,164.0,9.945e-05,3]
[408576639,1773901502391,160.0,9.8e-05,2]
[408576640,1773901507437,158.0,9.945e-05,3]
[408576641,1773901507936,316.0,9.945e-05,3]
[408576642,1773901531753,200.0,0.0001,2]
[408576643,1773901536895,202.97,0.0001,2]
[408576644,1773901557706,200.0,0.0001,2]
[408576645,1773901561323,200.0,0.0001,2]